Cogmind - Beta 17.1 @@@ ROGUE MODE // 2026.09.17 @ 13:58:37 Player: MOPO3 Result: Destroyed by 9Q-TWO(j) with Overtuned Pulse Rifle Performance ------------- Evolutions (0) 0 Regions Visited (4) 800 Robots Destroyed (43) 215 Value Destroyed (1147) 1147 Prototype IDs (0) 0 Alien Tech Used (0) 0 Bonus (800) 800 TOTAL SCORE: 2962 Bonus ------- Registered with UFD 300 Met Optimus in HQ 500 Cogmind --------- Core Integrity 0/250 Matter 290/300 Energy 193/275 System Corruption 0% Temperature Warning (313) Movement Core (250) Ox4 Location -8/Scraptown Parts ------- > --- POWER (1) -------- Deuterium Engine > --- PROPULSION (2) --- Overtuned Huge Scrapsphere > --- UTILITY (2) ------ High-capacity Storage Unit Advanced Weight Redist. System > --- WEAPON (2) ------- Overtuned Pulse Rifle Missile Launcher > --- INVENTORY (20) --- Armored Wheel VTOL Module Cesium-ion Thruster Scrap Suit Small Storage Unit Deep Structural Scanner Melee Analysis Suite Actuator Array Makeshift ECM Suite Makeshift Light Armor Plating Reflective Plating Makeshift Hacking Suite Makeshift Hacking Suite Overtuned Beamcaster Improved Light Cannon Battle Cannon Battle Cannon Battle Cannon Heavy Mace Peak State ------------ > --- POWER ------------ Deuterium Engine > --- PROPULSION ------- Overtuned Huge Scrapsphere > --- UTILITY ---------- High-capacity Storage Unit Advanced Weight Redist. System > --- WEAPON ----------- Overtuned Pulse Rifle Overtuned Beamcaster > --- INVENTORY -------- Light Deuterium Engine Armored Wheel Armored Wheel VTOL Module Cesium-ion Thruster Scrap Suit Small Storage Unit Deep Structural Scanner Melee Analysis Suite Actuator Array Makeshift ECM Suite Reflective Plating Improved Light Cannon Improved Light Cannon Battle Cannon Battle Cannon Battle Cannon Missile Launcher Heavy Mace [Rating: 33] Favorites ----------- Power Ion Engine Engine Ion Engine Propulsion Compact Wheel Treads Light Treads Wheel Compact Wheel Utility High-capacity Storage Unit Device Advanced Weight Redist. System Storage High-capacity Storage Unit Protection Scrap Shield Weapon Subdweller Machine Gun Energy Gun Medium Laser Energy Cannon Subdweller Beam Cannon Ballistic Gun Subdweller Machine Gun Ballistic Cannon Battle Cannon Launcher Subdweller Shrapnel Launcher Impact Weapon Makeshift Hammer Build | -11 -10 -10 -8 -8 ------- Run | Yrd Mat Sub Rec Scr Slots Evolved . | . . . . . Power . | . . . . . Propulsion . | . . . . . Utility . | . . . . . Weapon . | . . . . . Parts Attached 42 | 7 1 20 4 10 Power 3 | 1 . 1 . 1 Engine 3 | 1 . 1 . 1 Core . | . . . . . Reactor . | . . . . . Propulsion 14 | 2 . 6 2 4 Treads 2 | 2 . . . . Leg . | . . . . . Wheel 12 | . . 6 2 4 Hover . | . . . . . Flight . | . . . . . Utility 8 | 2 1 3 1 1 Device 2 | 1 . . . 1 Storage 3 | 1 1 1 . . Processor . | . . . . . Hackware . | . . . . . Protection 3 | . . 2 1 . Artifact . | . . . . . Weapon 17 | 2 . 10 1 4 Energy Gun 4 | 2 . . . 2 Energy Cannon 1 | . . 1 . . Ballistic Gun 6 | . . 5 . 1 Ballistic Cannon 3 | . . 2 1 . Launcher 2 | . . 1 . 1 Special Weapon . | . . . . . Impact Weapon 1 | . . 1 . . Slashing Weapon . | . . . . . Piercing Weapon . | . . . . . Special Melee Weapon . | . . . . . Unidentified Prototypes . | . . . . . Parts Lost 6 | . . 4 2 . Power . | . . . . . Propulsion 1 | . . 1 . . Utility 2 | . . 1 1 . Weapon 3 | . . 2 1 . Highest Loss Streak 2 | . . 1 2 . To Critical Strikes 1 | . . . 1 . Average Backups 10 | 2 6 8 5 16 Power . | . 1 . . . Propulsion 1 | 1 2 1 1 2 Utility 2 | . . 1 . 3 Weapon 6 | . 2 4 3 9 Tool/Special . | . . . . . Unused Backups 35 | . . 10 . 25 Power 2 | . . 1 . 1 Propulsion 4 | . . . . 4 Utility 13 | . . 4 . 9 Weapon 15 | . . 5 . 10 Tool/Special 1 | . . . . 1 Average Slot Usage (%) 83 | . 100 89 91 72 Engine 14 | . 14 14 14 14 Treads 6 | . 28 13 . . Wheel 20 | . . 14 28 26 Device 8 | . 14 6 . 12 Storage 10 | . 14 7 6 14 Protection 4 | . . 5 13 1 Energy Gun 5 | . 28 6 . 3 Energy Cannon 1 | . . . 7 . Ballistic Gun 5 | . . 15 . . Ballistic Cannon 2 | . . . 12 . Launcher 2 | . . 3 6 . Peak Build Rating 33 | 7 7 14 14 33 Average Rating 11 | 5 7 10 12 14 On Entrance 7 | . 7 7 13 12 Avg Prop Armor Cover (%) 7 | . . 5 . 11 Naked Turns . | . . . . . Heaviest Build 59 | 12 47 53 59 59 Greatest Support 41 | 40 40 40 36 41 Greatest Overweight (x) 5 | . 1 5 1 4 Average Overweight (x) 1 | . . 1 . 1 Largest Inventory Capacity 20 | 8 20 20 20 20 Average Capacity 15 | 7 16 13 12 20 Most Carried 20 | 4 8 14 6 20 Average Carried 11 | 2 6 8 5 16 Final Capacity 20 | 8 20 5 20 20 Final Carried 20 | 4 8 5 6 20 Class Distribution -------------------- 85% | Mutant 9% | Subdweller-Mutant 5% | Derelict-Mutant Dominant Class ---------------- Mutant | -10/Materials Mutant | -10/Subcaves Mutant | -8/Recycling Mutant | -8/Scraptown Resources | -11 -10 -10 -8 -8 ----------- Run | Yrd Mat Sub Rec Scr Matter Collected 1238 | 270 10 602 212 144 Remotely . | . . . . . Salvage Created 1054 | 127 137 370 397 23 Parts 73 | 7 11 40 13 2 Haulers Intercepted . | . . . . . Recyclers Shooed 2 | . . . 2 . Parts Field Recycled . | . . . . . Retrieved Matter . | . . . . . Parts Self-Destructed 4 | . . 4 . . Prevented . | . . . . . Parts Restored . | . . . . . Kills | -11 -10 -10 -8 -8 ------- Run | Yrd Mat Sub Rec Scr Combat Hostiles Destroyed 35 | . 7 19 9 . Guns 12 | . 7 5 . . Cannons 6 | . . 5 1 . AOE 17 | . . 9 8 . Classes Destroyed 13 | 2 2 2 6 1 Worker 2 | . . . 2 . Builder 1 | . . . 1 . Tunneler 2 | 2 . . . . Recycler 1 | 1 . . . . Turret 2 | . . 2 . . Swarmer 12 | . 6 4 2 . Grunt 3 | . 1 . 2 . Duelist 1 | . . . 1 . Protector 2 | . . . 2 . Hunter 1 | . . . 1 . Programmer 1 | . . . 1 . Subdweller 15 | . . 15 . . Tinkerer 1 | . . . . 1 Best Kill Streak 12 | 2 3 8 12 1 Combat Bots Only 9 | . 3 6 9 . Max Kills in Single Turn 4 | 1 2 3 4 1 Gunslinging 1 | . 1 . . . Exploded 3 | . . 2 3 . Melee . | . . . . . Uniques/NPCs Destroyed . | . . . . . Combat | -11 -10 -10 -8 -8 -------- Run | Yrd Mat Sub Rec Scr Hostile Shots Fired 130 | . 23 82 19 6 Missed 34 | . 4 24 6 . Hits 96 | . 19 58 13 6 Projectile 96 | . 19 58 13 6 AOE 3 | . . 3 . . Critical Strikes 3 | . . 2 1 . Damage Taken 1792 | . 164 1299 191 138 Core 265 | . 27 199 15 24 Absorbed by Shields . | . . . . . Core Remaining (%) 100 | 100 . . . . Volleys Fired 92 | 7 15 58 9 3 Largest 2 | 2 2 2 1 2 Hottest 180 | 90 90 113 40 180 Shots Fired 160 | 14 30 101 9 6 Gun 110 | 14 30 60 . 6 Cannon 29 | . . 27 2 . Launcher 21 | . . 14 7 . Special . | . . . . . Kinetic 71 | . . 62 9 . Thermal 89 | 14 30 39 . 6 Explosive . | . . . . . Electromagnetic . | . . . . . Robot Hit Streak 16 | 4 4 16 3 3 Robot Miss Streak 2 | 1 2 2 1 1 Penetration Max . | . . . . . Secondary Targets 2 | . 1 1 . . Max Gunslinging Chain 1 | . 1 1 . . Shots Hit Robots 107 | 10 17 67 8 5 Core Hits 78 | 4 8 34 31 1 Critical Kills . | . . . . . Critical Parts Destroyed . | . . . . . Critical Strikes 3 | . 1 1 1 . Burn 1 | . 1 . . . Blast 2 | . . 1 1 . Melee Attacks 4 | . . 1 3 . Impact 4 | . . 1 3 . Slashing . | . . . . . Piercing . | . . . . . Sneak Attacks . | . . . . . Combat Hostiles . | . . . . . Follow-up Attacks . | . . . . . Damage Inflicted 4150 | 114 205 2352 1352 127 Guns 1169 | 114 205 723 . 127 Cannons 547 | . . 512 35 . Explosions 2132 | . . 1117 1015 . Melee 301 | . . . 301 . Ramming 1 | . . . 1 . Kinetic 2912 | . . 1862 1050 . Thermal 936 | 114 205 490 . 127 Explosive . | . . . . . Electromagnetic . | . . . . . Impact 301 | . . . 301 . Slashing . | . . . . . Piercing . | . . . . . Highest Corruption . | . . . . . Average Corruption . | . . . . . Corruption Purged . | . . . . . Corruption Blocked . | . . . . . Overload Shots . | . . . . . Overflow Damage 46 | . . 8 38 . Projectiles 8 | . . 8 . . Explosions 38 | . . . 38 . Melee . | . . . . . Knockbacks 2 | . . 2 . . Impact . | . . . . . Kinetic 2 | . . 2 . . Secondary . | . . . . . Self-Inflicted Damage 47 | . . 47 . . Shots 2 | . . 2 . . Rammed 1 | . . . 1 . Targets Rammed 1 | . . . 1 . Kicked . | . . . . . Crushed . | . . . . . Highest Temperature 320 | 150 246 28 . 320 Average Temperature 84 | 62 106 11 . 125 Received Heat Transfer 255 | . 18 156 9 72 Siege Activations . | . . . . . Martial Activations . | . . . . . Shielding Activations . | . . . . . Robots Disrupted . | . . . . . Combat Hostiles . | . . . . . Robots Corrupted . | . . . . . Combat Hostiles . | . . . . . Parts Fried . | . . . . . Impact Corruptions . | . . . . . Robots Melted . | . . . . . Combat Hostiles . | . . . . . Parts Melted 2 | 1 . 1 . . Heat Transferred 2017 | 298 619 889 . 211 Parts Sabotaged . | . . . . . Parts Stolen . | . . . . . Parts Stripped . | . . . . . Power Chain Reactions . | . . . . . Alert | -11 -10 -10 -8 -8 ------- Run | Yrd Mat Sub Rec Scr Maximum Alert Level 1 | . . . 1 . Low Security (%) 89 | 100 100 . 82 . Level 1 10 | . . . 17 . Level 2 . | . . . . . Level 3 . | . . . . . Level 4 . | . . . . . Level 5 . | . . . . . High Security . | . . . . . Max Security . | . . . . . Peak Influence 250 | 5 101 . 250 . Initial 72 | . . . 72 . Average 74 | . 38 . 102 . Influence Increases 796 | 15 187 165 429 . Destroy 0b10 Robot/C 400 | . 140 120 140 . Destroy 0b10 Robot/NC 70 | 15 . . 55 . Destroy Leader 30 | . 30 . . . Successful Hack 45 | . 16 . 29 . Select Force Hacks 180 | . . . 180 . Destroy Structure 26 | . 1 . 25 . Lose Combat Pursuer 45 | . . 45 . . Influence Decreases 796 | 15 164 37 394 186 Entered New Map 277 | . . 12 79 186 Time Decay 489 | 15 154 25 295 . Lost Part 20 | . . . 20 . Lost Ally 10 | . 10 . . . Squads Dispatched 1 | . 1 . . . Investigation 1 | . 1 . . . Extermination . | . . . . . Reinforcement . | . . . . . Assault . | . . . . . Garrison . | . . . . . Intercept . | . . . . . Searches Triggered . | . . . . . Construction Impeded . | . . . . . Haulers Reinforced . | . . . . . Active Scanning Responses . | . . . . . Cargo Convoy Interrupts . | . . . . . Stealth | -11 -10 -10 -8 -8 --------- Run | Yrd Mat Sub Rec Scr Distress Signals . | . . . . . Communications Jammed . | . . . . . Distress Signals . | . . . . . Times Spotted 43 | . 8 19 4 12 Peak Tracking Total 4 | . 4 3 3 4 Tactical Retreats 1 | . . 1 . . Traps | -11 -10 -10 -8 -8 ------- Run | Yrd Mat Sub Rec Scr Traps Triggered 2 | . . 2 . . Indirectly . | . . . . . Trap Hack Attempts . | . . . . . Triggered . | . . . . . Disarmed . | . . . . . Reprogrammed . | . . . . . Reused . | . . . . . Traps Extracted . | . . . . . Installed . | . . . . . Triggered . | . . . . . Machines | -11 -10 -10 -8 -8 ---------- Run | Yrd Mat Sub Rec Scr Machines Disabled 3 | . . 3 . . Max in Single Turn 3 | . . 3 . . Machines Repaired . | . . . . . Machines Dismantled . | . . . . . Machines Sabotaged . | . . . . . Overloaded Fab Kills . | . . . . . Hacking | -11 -10 -10 -8 -8 --------- Run | Yrd Mat Sub Rec Scr Machines Accessed 23 | . 1 . 14 8 Terminals 7 | . 1 . 6 . Fabricators . | . . . . . Repair Stations . | . . . . . Recycling Units 6 | . . . 6 . Scanalyzers . | . . . . . Garrison Access . | . . . . . Total Hacks 116 | . 5 . 50 61 Successful 104 | . 3 . 40 61 Failed 12 | . 2 . 10 . Catastrophic 4 | . 1 . 3 . Database Lockouts . | . . . . . Manual 28 | . 5 . 23 . Terminals 22 | . 5 . 17 . Fabricators . | . . . . . Repair Stations . | . . . . . Recycling Units 9 | . . . 9 . Scanalyzers . | . . . . . Garrison Access . | . . . . . Terminal Hacks 89 | . 1 . 27 61 Record 85 | . . . 24 61 Part Schematic 2 | . 1 . 1 . Branch Access Points 1 | . . . 1 . Emergency Access Points 1 | . . . 1 . Fabricator Hacks . | . . . . . Repair Station Hacks . | . . . . . Recycling Unit Hacks 2 | . . . 2 . Retrieve Matter 1 | . . . 1 . Retrieve Components 1 | . . . 1 . Scanalyzer . | . . . . . Garrison Access Hacks . | . . . . . Unauthorized Hacks 13 | . 2 . 11 . Terminals 7 | . 2 . 5 . Assimilate 1 | . 1 . . . Botnet 6 | . 1 . 5 . Fabricators . | . . . . . Repair Stations . | . . . . . Recycling Units 6 | . . . 6 . Tunnel 6 | . . . 6 . Scanalyzers . | . . . . . Garrison Access . | . . . . . Data Cores Recovered . | . . . . . Used . | . . . . . Hacking Detections 7 | . 1 . 6 . Full Trace Events 1 | . . . 1 . Feedback Events . | . . . . . Feedback Blocked . | . . . . . Robot Schematics Acquired . | . . . . . Robots Built . | . . . . . Authchips . | . . . . . Time . | . . . . . Total Robot Build Rating . | . . . . . Part Schematics Acquired 1 | . 1 . . . Parts Built . | . . . . . Authchips . | . . . . . Time . | . . . . . Total Part Build Rating . | . . . . . Part Studies Acquired . | . . . . . Parts Repaired . | . . . . . Time . | . . . . . Parts Recycled . | . . . . . Recycled Matter . | . . . . . Retrieved Matter . | . . . . . Retrieved Components 1 | . . . 1 . Parts Scanalyzed . | . . . . . Part Schematics Acquired . | . . . . . Parts Damaged . | . . . . . Bothacking | -11 -10 -10 -8 -8 ------------ Run | Yrd Mat Sub Rec Scr Used RIF Installer . | . . . . . Robots Hacked . | . . . . . Non-combat . | . . . . . Combat . | . . . . . Robot Hacks Applied . | . . . . . Relay Couplers Released . | . . . . . Fabnet Peak Effective % . | . . . . . Robots Rewired . | . . . . . Allies Hacked . | . . . . . Hacks Repelled . | . . . . . Allies | -11 -10 -10 -8 -8 -------- Run | Yrd Mat Sub Rec Scr Total Allies 2 | . 1 . . 1 Largest Group 1 | . 1 . . 1 Highest-Rated Group 27 | . 10 . . 27 Highest-Rated Ally 27 | . 10 . . 27 Total Orders . | . . . . . Ally Attacks . | . . . . . Total Damage . | . . . . . Kills . | . . . . . Allies Corrupted . | . . . . . Allies Melted 2 | . . . . 2 Intel | -11 -10 -10 -8 -8 ------- Run | Yrd Mat Sub Rec Scr Active Infowar (turns) 1550 | 36 416 1098 . . Seismic 1550 | 36 416 1098 . . Robot Analysis Total . | . . . . . Derelict Logs Recovered 2 | . . 2 . . Drone Launches . | . . . . . Drone Recoveries . | . . . . . Exploration | -11 -10 -10 -8 -8 ------------- Run | Yrd Mat Sub Rec Scr Turns Passed 6563 | 161 416 2274 947 2765 Spaces Moved 4662 | 82 122 1395 784 2279 Core 108 | 5 . . . 103 Treads 624 | 77 122 425 . . Legs . | . . . . . Wheels 3930 | . . 970 784 2176 Hover . | . . . . . Flight . | . . . . . Fastest Speed 50 | 50 160 95 105 80 Average Speed 127 | 153 192 144 114 117 Slowest Speed 250 | 160 240 240 115 250 Overloaded Moves . | . . . . . Propulsion Burnouts . | . . . . . Robots Hopped . | . . . . . Potential Cave-ins . | . . . . . Cave-ins Triggered . | . . . . . Exploration Rate (%) 56 | 4 21 69 97 89 Regions Visited 4 Branch Regions 3 Pre-discovered Areas 10 | . . . 6 4 Known Exits Taken . | . . . . . Unknown Exits Taken 4 | 1 1 1 1 . Scrap Searched 15 | . . 9 . 6 Spaces Dug . | . . . . . Terrain Destroyed 163 | . . 122 41 . Melee . | . . . . . Projectile . | . . . . . AOE 163 | . . 122 41 . Terrain Rammed . | . . . . . Walls Destroyed . | . . . . . Machines Disabled . | . . . . . Actions | -11 -10 -10 -8 -8 --------- Run | Yrd Mat Sub Rec Scr Total 5106 | 100 273 1548 819 2366 Wait 168 | . 133 2 10 23 Move 4658 | 81 121 1394 783 2279 Hop . | . . . . . Pick Up 65 | 5 3 29 3 25 Fast Attach 17 | 6 . 4 2 5 Attach 5 | 1 . 2 2 . Detach 4 | . . . . 4 Swap 29 | . 1 19 4 5 Drop 52 | . . 28 2 22 Fire 92 | 7 15 58 9 3 Melee 4 | . . 1 3 . Ram 1 | . . . 1 . Kick . | . . . . . Crush . | . . . . . Escape Stasis . | . . . . . Rewire . | . . . . . Trap . | . . . . . Miscellaneous 11 | . . 11 . . Route ------- -11/Scrapyard -10/Materials (discovered 2 exits: [*Mat] / [*Sub]) -10/Subcaves (discovered 2 exits: [*Mat] / *Rec) -8/Recycling (discovered 2 exits: *Fac / *Scr) -8/Scraptown (discovered 2 exits: *Fac x2) History --------- Turn | Location | Event 2 | -11/Scrapyard | Discovered new exit (range 16) 162 | -11/Scrapyard | Entered Materials 318 | -10/Materials | Build established: Mutant 360 | -10/Materials | Discovered new exit (range 16) 560 | -10/Materials | Discovered new exit (range 9) 578 | -10/Materials | Entered Subcaves 579 | -10/Subcaves | Approached by a straggling Scientist 687 | -10/Subcaves | Shifting Twisted Machinery released Mak. Shrapnel Gun 716 | -10/Subcaves | Shifting Twisted Machinery released Sub. Power Source 848 | -10/Subcaves | Discovered new exit (range 4) 862 | -10/Subcaves | A swath of the cavern ceiling suddenly collapsed 1648 | -10/Subcaves | Learned Materials trap positions 2162 | -10/Subcaves | Shifting Twisted Machinery released Sub. Power Source 2173 | -10/Subcaves | Learned Materials terminal intel 2247 | -10/Subcaves | Core integrity fell below 50% 2285 | -10/Subcaves | Core integrity fell below 20% 2394 | -10/Subcaves | Shifting Twisted Machinery released Riot Gun 2562 | -10/Subcaves | Disturbed a concealed Subdweller 2738 | -10/Subcaves | Disturbed a concealed Subdweller 2756 | -10/Subcaves | Discovered new exit (range 15) 2785 | -10/Subcaves | Disturbed a concealed Subdweller 2785 | -10/Subcaves | Disturbed a concealed Subdweller 2806 | -10/Subcaves | Build established: Subdweller-Mutant 2852 | -10/Subcaves | Entered Recycling 3202 | -8/Recycling | Build established: Mutant 3379 | -8/Recycling | Destroyed 9 combat bots 3533 | -8/Recycling | Discovered new exit (range 5) 3734 | -8/Recycling | Scanned before Scraplab entrance 3751 | -8/Recycling | Entered Scraplab 3761 | -8/Recycling | Discovered new exit (range 3) 3799 | -8/Recycling | Entered Scraptown 4424 | -8/Scraptown | Discovered new exit (range 5) 4477 | -8/Scraptown | Visited Symbiants 4510 | -8/Scraptown | Visited Fellowship of the Rings 4536 | -8/Scraptown | Visited Spacefarers 4754 | -8/Scraptown | Visited TADAMA 4779 | -8/Scraptown | Visited The Evicted 4813 | -8/Scraptown | Visited UFD Registry 4825 | -8/Scraptown | Registered with UFD as "Wirerider" 4927 | -8/Scraptown | Visited Red Mages 5197 | -8/Scraptown | Visited Shadow of the Wyrm 5271 | -8/Scraptown | Visited Cartography Club 5526 | -8/Scraptown | Learned location of Upper Caves (-5) 5526 | -8/Scraptown | Learned location of Armory (-4) 5526 | -8/Scraptown | Learned location of Testing (-3) 5526 | -8/Scraptown | Learned 12 Materials zone layouts 5526 | -8/Scraptown | Learned 8 Research zone layouts 5526 | -8/Scraptown | Learned 12 Lower Caves zone layouts 5526 | -8/Scraptown | Learned 8 Upper Caves zone layouts 5526 | -8/Scraptown | Learned 12 Upper Caves zone layouts 5526 | -8/Scraptown | Learned 4 Hub_04(d) zone layouts 5526 | -8/Scraptown | Learned Research emergency access door positions 5526 | -8/Scraptown | Learned location of 2 exits from Research 5526 | -8/Scraptown | Learned location of 3 exits from Proximity Caves 5526 | -8/Scraptown | Identified exit to Factory 5796 | -8/Scraptown | Visited DA-N13 Charitable Foundation 5801 | -8/Scraptown | Found DCF Scrap (29 items) 5949 | -8/Scraptown | Found Deep Structural Scanner 6037 | -8/Scraptown | Found Scrap Suit 6113 | -8/Scraptown | Build established: Derelict-Mutant 6124 | -8/Scraptown | Visited Botcube Research 6133 | -8/Scraptown | Botcube activated 6137 | -8/Scraptown | Botcube completed mutation into core form, armed with 1 launcher 6181 | -8/Scraptown | Visited Modified Component R&D 6279 | -8/Scraptown | Visited Scrap Suit Storage 6327 | -8/Scraptown | Met Optimus 6327 | -8/Scraptown | Accepted into 0bPrime 6433 | -8/Scraptown | Visited LU-1G1's Boring Crew 6456 | -8/Scraptown | Civil war broke out across Scraptown 6521 | -8/Scraptown | Build established: Mutant 6564 | -8/Scraptown | Destroyed by 9Q-TWO(j) with Overtuned Pulse Rifle Last Messages --------------- 06482_ YI-I1M(r) destroyed. 06482_ Slug penetrates GA-Y12(r). 06485_ GA-Y12(r) destroyed. 06486_ EL-W93(g) suffers critical hit (Destroy). 06487_ EL-W93(g) destroyed. 06500_ Dropped Arm. Wheel. 06500_ Acquired Mak. Light Armor Plating. 06509_ MP-COP(p) suffers critical hit (Destroy). 06509_ MP-COP(p) destroyed. 06510_ Machine disabled. 06510_ Slug penetrates Wall. 06511_ WY-OKG(g) switches sides. 06511_ WY-OKG(g) destroyed. 06528_ Ovr. Huge Scrapsphere recovered from malfunction. 06529_ Dropped Imp. Light Cannon. 06530_ Acquired Mak. Hacking Suite. 06532_ Ovr. Huge Scrapsphere suddenly begins malfunctioning. 06535_ Dropped Lgt. Deuterium Engine. 06536_ Acquired Mak. Hacking Suite. 06559_ Slug penetrates Machine. Map ----- +----------------------------------------------------+ | "" "## ##"#????????? | | " ######### #"" "## !! ! #???????????? | | " "" ""#??????###"" "## #"""""#???????????? | | "" "" ##????????#"" "##########???????????? | | X"#????????#""! "#????????????????????? | | ##????????#""% "########?????????????? | | ## ######???????###""= "#" ??????????????? | | """""??????????""""""" =# ####??????????????? | | """""??????""""""""""" /%! #??????????????? | | ???? *## #??????????????? | | ???? *=## #??????????????? | | ???? !% ;# #??????????????? | | ???? ! [![## #??????????????? | | ???? !%[ *!%# ####??????????????? | | "?"""?????"""" = "" %=! ## ?????????????????? | | ????????????###""" ###### %/####?????????????????? | | ????????????? ????"" !=#????????????????????? | | ????????????##"" ??????# ##???????????????????? | | ?????????????#!" ???????# % ;#???????????????????? | | ??????????????"?????????# / ##???????????????????? | | ????????????????????????# #????????????????????? | | ????????????????????????# ############?????????? | | ????????????????????????# #?????????? | | ????????????????????????# ##?????????? | | ????????????????????????# %! #?????????? | | ????????????????????????#@==] #?????????? | | ????????????????????????#=% #?????????? | | ????????????????????????#!! ############?????????? | | ????????????????????????#! *#####????????????????? | | ????????????????????????#j[= """#????????????????? | | ????????????????""|##" #!j* "#????????????????? | | ??????????? =!=%[ "#????????????????? | | ??????????? [!= "#????????????????? | | ??????????? """"#????????????????? | | ???????????? "##!!$##"" ## ######????????????????? | | ???????????????#"???#"""?#;#?????????????????????? | | ?????????????????????###?# #?????????????????????? | | ?????????????????????????# #?????????????????????? | | ?????????????????????????###?????????????????????? | | ?????????????????????????????????????????????????? | | ?????????????????????????????????????????????????? | | ?????????????????????????????????????????????????? | | ?????????????????????????????????????????????????? | | ?????????????????????????????????????????????????? | | ?????????????????????????????????????????????????? | | ?????????????????????????????????????????????????? | | ?????????????????????????????????????????????????? | | ?????????????????????????????????????????????????? | | ?????????????????????????????????????????????????? | | ?????????????????????????????????????????????????? | +----------------------------------------------------+ Best States ------------- Heat Dissipation 25 Energy Generation 14 Energy Capacity 275 Matter Stores 300 Matter Capacity 300 Sight Range 16 Terrain Scan Density 10 Additional Mass Support 9 Armor Coverage 800 Evasion (%) 44 Recoil Reduction 2 Item Schematics ----------------- Signal Interpreter | -10/Materials | Hacked Robot Schematics ------------------ None Fabricated ------------ Nothing Repaired ---------- Nothing Studied --------- None Alien Tech Used ----------------- None Achievements -------------- Civilization 2243 Frankenstein Link The Feds You May Approach The Wall Challenges ------------ None Game ------ Seed TeleporterBlinkSword Manual? 0 Play Time 01:03:19 Cumulative 27.2 hours Start 2026.09.17 @ 12:44:27 End 2026.09.17 @ 13:58:37 Sessions 1 Manual Loads 0 Difficulty Rogue Special Mode None Game No. 30 Rogue 30 Adventurer 0 Explorer 0 Win Type - Total 1 Types 1/0/0/0/0/0/0/0/0/0 Lore% 24 Gallery% 28 Achievement% 27 Wizard Run 0 Options --------- Layout 0 ASCII 0 Keyboard 0 Movement Numpad Keybinds 0 Fullscreen 1 Font 18/Terminus Map View 76x50 Zoom Use 0% Tactical HUD 1 Map Filters NONE Filters NONE Steam 1 RUN: 7c12b1f4-75ce-4524-baf2-d6ef00ccde32